bitfinex/quotes_BTCUSD_20250320
["timestamp","ask_amount","ask_price","bid_price","bid_amount"]
[1742510638430,9.2e-07,84239.0,84238.0,0.88666703]
[1742510639313,9.2e-07,84239.0,84238.0,0.88266703]
[1742510639517,9.2e-07,84239.0,84238.0,0.88566703]
[1742510639711,9.2e-07,84239.0,84238.0,0.88766703]
[1742510640636,9.2e-07,84239.0,84238.0,1.01994703]
[1742510642537,9.2e-07,84239.0,84238.0,1.58478703]
[1742510649420,0.10790088,84239.0,84238.0,0.56984]
[1742510649602,0.10790088,84239.0,84238.0,0.939502]
[1742510649761,0.10790088,84239.0,84238.0,0.951373]
[1742510650381,0.10290088,84239.0,84238.0,0.951373]
[1742510650773,0.10790088,84239.0,84238.0,0.69908]
[1742510650971,0.10790088,84239.0,84238.0,0.70008]
[1742510651180,0.10790088,84239.0,84238.0,0.949373]
[1742510651382,0.10790088,84239.0,84238.0,0.947373]
[1742510651784,0.10790088,84239.0,84238.0,0.815133]
[1742510651987,0.10790088,84239.0,84238.0,0.947373]
[1742510652851,0.35718988,84239.0,84238.0,0.69808]
[1742510653632,0.35718988,84239.0,84238.0,0.001]
[1742510653633,0.82636491,84239.0,84238.0,0.001]
[1742510654426,0.549314,84231.0,84219.0,0.13224]
[1742510654580,0.70681396,84231.0,84219.0,0.13224]
[1742510655029,0.82638899,84231.0,84219.0,0.13224]
[1742510655540,0.82738899,84231.0,84219.0,0.13224]
[1742510657326,0.670942,84231.0,84226.0,0.011872]
[1742510657650,0.70781396,84231.0,84224.0,0.011873]
[1742510657850,0.69594196,84231.0,84230.0,0.1324091]
[1742510658235,0.70781396,84231.0,84230.0,0.1324091]
[1742510662011,0.40889996,84231.0,84230.0,0.1324091]
[1742510662182,0.306,84231.0,84230.0,0.3817261]
[1742510662395,0.03099996,84231.0,84230.0,0.3817261]
[1742510664438,0.03099996,84231.0,84230.0,0.1324091]
[1742510665330,0.03099996,84231.0,84230.0,0.3698541]
[1742510665532,0.26844196,84231.0,84230.0,0.1324091]
[1742510665731,0.03099996,84231.0,84230.0,0.1324091]
[1742510666192,0.03099996,84231.0,84230.0,0.3698541]
[1742510667815,0.26844196,84231.0,84230.0,0.1324091]
[1742510668004,0.03099996,84231.0,84230.0,0.1324091]
[1742510668356,0.03099996,84231.0,84230.0,0.3698541]
[1742510671876,0.03099996,84231.0,84230.0,0.3817261]
[1742510674100,0.03099996,84231.0,84230.0,0.2494861]
[1742510674443,0.03099996,84231.0,84230.0,0.3817661]
[1742510677419,0.001,84231.0,84230.0,0.3817661]
[1742510678427,0.02499996,84234.0,84233.0,0.249307]
[1742510679878,0.02499996,84238.0,84237.0,0.249296]
[1742510680234,0.02999996,84238.0,84237.0,0.249296]
[1742510683965,0.02999996,84238.0,84237.0,0.237425]
[1742510691564,0.02999996,84238.0,84237.0,0.369665]
[1742510693847,0.02999996,84238.0,84237.0,0.237425]
[1742510694048,0.02999996,84238.0,84237.0,0.369665]
[1742510699316,9.2e-07,84239.0,84230.0,0.0001691]
[1742510699317,0.02499996,84231.0,84230.0,0.0001691]
[1742510699551,0.02999996,84231.0,84230.0,0.1324091]
[1742510699729,0.02999996,84231.0,84230.0,0.0001691]
[1742510699730,0.27931396,84231.0,84230.0,0.0001691]
[1742510699923,0.27931396,84231.0,84230.0,0.1324091]
[1742510700122,0.27931396,84231.0,84230.0,0.0001691]
[1742510700123,0.65931396,84231.0,84230.0,0.0001691]
[1742510701132,0.82708899,84231.0,84230.0,0.0001691]
[1742510701348,0.82708899,84231.0,84230.0,0.0021691]
[1742510701750,0.82708899,84231.0,84230.0,0.0001691]
[1742510702107,0.82808899,84231.0,84230.0,0.0001691]
[1742510706667,0.70851396,84231.0,84230.0,0.0001691]
[1742510706865,0.33099996,84231.0,84230.0,0.0001691]
[1742510707286,0.58031396,84231.0,84230.0,0.0001691]
[1742510710648,0.61598196,84231.0,84230.0,0.0001691]
[1742510716330,0.31598196,84231.0,84230.0,0.0001691]
[1742510717540,0.30410996,84231.0,84230.0,0.0001691]
[1742510717741,0.006,84231.0,84230.0,0.2494861]
[1742510717945,0.03099996,84231.0,84230.0,0.2494861]
[1742510718522,0.02999996,84231.0,84230.0,0.2494861]
[1742510718703,0.03099996,84231.0,84230.0,0.2494861]
[1742510719117,0.03299996,84231.0,84230.0,0.2494861]
[1742510719314,0.02799996,84231.0,84230.0,0.2494861]
[1742510719725,0.03299996,84231.0,84230.0,0.2494861]
[1742510719883,0.02699996,84231.0,84230.0,0.2494861]
[1742510720280,0.02499996,84231.0,84230.0,0.2494861]
[1742510720488,0.03099996,84231.0,84230.0,0.2494861]
[1742510720688,0.02599996,84231.0,84230.0,0.2494861]
[1742510721384,0.001,84231.0,84230.0,0.2494861]
[1742510722415,0.02599996,84231.0,84230.0,0.2494861]
[1742510723934,0.02499996,84231.0,84230.0,0.2504861]
[1742510724332,0.02499996,84235.0,84234.0,0.249304]
[1742510724537,0.02499996,84235.0,84234.0,0.381544]
[1742510724978,0.02999996,84236.0,84235.0,0.249301]
[1742510726984,9.2e-07,84239.0,84238.0,0.249293]
[1742510727600,9.2e-07,84239.0,84238.0,0.63220803]
[1742510728578,9.2e-07,84239.0,84238.0,0.63420803]
[1742510729004,9.2e-07,84239.0,84238.0,0.63220803]
[1742510729368,9.2e-07,84239.0,84238.0,1.04900703]
[1742510730361,9.2e-07,84239.0,84238.0,1.05000703]
[1742510730587,9.2e-07,84239.0,84238.0,1.04600703]
[1742510730920,9.2e-07,84239.0,84238.0,1.04800703]
[1742510731122,9.2e-07,84239.0,84238.0,1.06554788]
[1742510732383,9.2e-07,84239.0,84238.0,1.0721034]
[1742510733618,9.2e-07,84239.0,84238.0,1.08664425]
[1742510734020,9.2e-07,84239.0,84238.0,1.08964425]
[1742510734547,9.2e-07,84239.0,84238.0,1.0751034]
[1742510735090,9.2e-07,84239.0,84238.0,1.0750634]
[1742510746567,9.2e-07,84239.0,84238.0,1.0752326]
[1742510751518,9.2e-07,84239.0,84238.0,0.9923326]
[1742510751917,9.2e-07,84239.0,84238.0,0.9441326]
[1742510766954,9.2e-07,84239.0,84238.0,0.78783623]
[1742510767155,9.2e-07,84239.0,84238.0,0.91999623]
[1742510767787,9.2e-07,84239.0,84238.0,0.91499623]
[1742510767966,9.2e-07,84239.0,84238.0,0.91799623]
[1742510768174,9.2e-07,84239.0,84238.0,0.91999623]
[1742510768390,9.2e-07,84239.0,84238.0,0.91799623]
[1742510768767,9.2e-07,84239.0,84238.0,0.91899623]
[1742510770196,9.2e-07,84239.0,84238.0,0.91599623]
[1742510770596,9.2e-07,84239.0,84238.0,0.91799623]
[1742510772628,0.07790092,84239.0,84238.0,0.91799623]
[1742510772870,0.0003386,84240.0,84239.0,0.249289]
[1742510774037,0.0003386,84240.0,84239.0,0.251289]
[1742510774719,0.0003386,84240.0,84239.0,0.252289]
[1742510776015,0.0003386,84240.0,84239.0,0.666088]
[1742510783894,0.0003386,84240.0,84239.0,0.798248]
[1742510784100,0.0003386,84240.0,84239.0,0.93236388]
[1742510784303,0.0003386,84240.0,84239.0,1.00766388]
[1742510784961,0.0003386,84240.0,84239.0,1.00466388]
[1742510785295,0.0003386,84240.0,84239.0,1.00666388]
[1742510786502,0.0003386,84240.0,84239.0,1.00966388]
[1742510791066,6e-07,84240.0,84239.0,1.00966388]
[1742510791780,6e-07,84240.0,84239.0,1.04674147]
[1742510792028,6e-07,84240.0,84239.0,1.04691067]
[1742510792455,6e-07,84240.0,84239.0,1.00983308]
[1742510792692,6e-07,84240.0,84239.0,1.00483308]
[1742510792883,6e-07,84240.0,84239.0,1.01083308]
[1742510793112,6e-07,84240.0,84239.0,1.01483308]
[1742510793525,0.0007388,84247.0,84246.0,0.349268]
[1742510793653,0.0007388,84247.0,84246.0,0.48338388]
[1742510795076,0.0007388,84247.0,84246.0,0.48538388]
[1742510797152,0.0007388,84247.0,84246.0,0.48938388]
[1742510797819,0.0007388,84247.0,84246.0,0.49810413]
[1742510799468,0.0007388,84247.0,84246.0,0.91190253]
[1742510801213,0.0007388,84247.0,84246.0,1.47666253]
[1742510808334,0.0007388,84247.0,84246.0,1.47666253]
[1742510814640,0.0007388,84247.0,84246.0,1.60476253]
[1742510814853,1e-06,84349.0,84348.0,0.13]
[1742510815067,0.011847,84407.0,84378.0,0.248879]
[1742510815272,0.01177793,84396.0,84378.0,0.09013629]
[1742510815482,0.01177793,84396.0,84378.0,0.69004696]
[1742510815686,0.236976,84397.0,84378.0,0.78225243]
[1742510815896,0.00141702,84379.0,84378.0,0.11408504]
[1742510816302,0.00141702,84379.0,84378.0,0.11368504]
[1742510816508,0.00141702,84379.0,84378.0,0.11328504]
[1742510816897,0.00141702,84379.0,84378.0,0.11288504]
[1742510817074,0.00141702,84379.0,84378.0,0.11248504]
[1742510817907,0.00141702,84379.0,84378.0,0.12433604]
[1742510818284,0.0004,84391.0,84378.0,0.12433604]
[1742510818285,2e-08,84381.0,84380.0,0.036851]
[1742510818497,0.00012504,84381.0,84380.0,0.17333633]
[1742510818674,0.00012504,84381.0,84380.0,0.17096688]
[1742510818870,0.00012504,84381.0,84380.0,0.27096688]
[1742510819392,0.00012504,84381.0,84380.0,0.25642603]
[1742510819552,0.00012504,84381.0,84380.0,0.14457503]
[1742510819761,0.00012504,84381.0,84378.0,0.11248504]
[1742510819961,0.011851,84375.0,84356.0,0.011854]
[1742510820319,0.011852,84373.0,84364.0,0.237067]
[1742510820507,0.237045,84372.0,84363.0,0.23707]
[1742510820711,0.248897,84373.0,84363.0,0.23707]
[1742510820911,0.011852,84369.0,84362.0,0.237072]
[1742510821122,0.011852,84373.0,84365.0,0.237062]
[1742510821323,0.011851,84375.0,84365.0,0.237062]
[1742510821544,0.44668,84379.0,84373.0,0.23704]
[1742510821749,0.44668,84379.0,84374.0,0.237039]
[1742510821884,0.44668,84379.0,84373.0,0.23704]
[1742510822092,0.44668,84379.0,84371.0,0.237048]
[1742510822302,0.44668,84379.0,84375.0,0.237034]
[1742510822508,0.44668,84379.0,84372.0,0.248897]
[1742510822880,0.3,84379.0,84376.0,0.237032]
[1742510823034,0.002,84375.0,84373.0,0.237042]
[1742510823237,0.002,84375.0,84362.0,0.237073]
[1742510823238,0.237047,84372.0,84362.0,0.237073]
[1742510823452,0.237082,84359.0,84352.0,0.237099]
[1742510823675,0.011854,84357.0,84349.0,0.237107]
[1742510824023,0.248941,84358.0,84349.0,0.237107]
[1742510824580,0.248932,84360.0,84351.0,0.237102]
[1742510824788,0.395523,84364.0,84352.0,0.237099]
[1742510825019,0.248934,84360.0,84352.0,0.237099]
[1742510825426,0.56436,84373.0,84360.0,0.011853]
[1742510825627,0.23707,84363.0,84353.0,0.237097]
[1742510825832,0.24892,84365.0,84357.0,0.011854]
[1742510826033,0.24892,84365.0,84358.0,0.237084]
[1742510826257,0.237064,84366.0,84358.0,0.248938]
[1742510826457,0.248917,84366.0,84359.0,0.237079]
[1742510826659,0.248911,84367.0,84359.0,0.248933]
[1742510827406,0.002,84360.0,84359.0,0.248933]
[1742510827697,0.002,84360.0,84359.0,0.237079]
[1742510827915,0.237066,84365.0,84357.0,0.248939]
[1742510828109,0.011853,84366.0,84358.0,0.237082]
[1742510828887,0.002,84360.0,84358.0,0.237082]
[1742510830159,0.248916,84366.0,84360.0,0.237078]
[1742510830317,0.002,84365.0,84360.0,0.237078]
[1742510830870,0.250916,84366.0,84360.0,0.237078]
[1742510831345,0.237066,84365.0,84358.0,0.248936]
[1742510831523,0.239066,84365.0,84358.0,0.248936]
[1742510831724,0.237069,84364.0,84358.0,0.237082]
[1742510832245,0.248919,84365.0,84358.0,0.237082]
[1742510832480,0.249919,84365.0,84358.0,0.237082]
[1742510832644,0.249919,84365.0,84359.0,0.237081]
[1742510833710,0.248919,84365.0,84359.0,0.237081]
[1742510833912,0.23707,84364.0,84357.0,0.248939]
[1742510834117,0.23807,84364.0,84357.0,0.248939]
[1742510834293,0.23807,84364.0,84358.0,0.237083]
[1742510834435,0.23707,84364.0,84358.0,0.237083]
[1742510834636,0.237071,84363.0,84358.0,0.237083]
[1742510834893,0.237071,84363.0,84357.0,0.248939]
[1742510835101,0.248952,84353.0,84352.0,0.000338]
[1742510836473,0.24907696,84353.0,84352.0,0.000338]
[1742510837316,0.25307696,84353.0,84352.0,0.000338]
[1742510837926,0.67565199,84353.0,84352.0,0.000338]
[1742510838137,0.72235199,84353.0,84352.0,0.000338]
[1742510838961,0.60277696,84353.0,84352.0,0.000338]
[1742510839148,0.74757696,84353.0,84352.0,0.000338]
[1742510839555,0.00712496,84353.0,84352.0,0.012193]
[1742510839719,0.00712496,84353.0,84352.0,0.000338]
[1742510840130,0.24422296,84353.0,84352.0,0.000338]
[1742510840336,0.25607696,84353.0,84352.0,0.000338]
[1742510840536,0.81345199,84353.0,84352.0,0.000338]
[1742510840939,0.81845199,84353.0,84352.0,0.000338]
[1742510841871,0.81545199,84353.0,84352.0,0.000338]
[1742510842102,0.81345199,84353.0,84352.0,0.000338]
[1742510842300,0.81645199,84353.0,84352.0,0.000338]
[1742510843056,0.82145199,84353.0,84352.0,0.001338]
[1742510843667,0.81845199,84353.0,84352.0,0.001338]
[1742510843868,0.81845199,84353.0,84319.0,0.249051]
[1742510843869,0.011859,84320.0,84314.0,0.33768041]
[1742510844077,0.011857,84332.0,84314.0,0.33768041]
[1742510844078,0.01112496,84353.0,84325.0,0.337177]
[1742510844318,0.01112496,84353.0,84352.0,0.237101]
[1742510844319,0.011,84353.0,84352.0,0.237101]
[1742510844517,0.011,84353.0,84352.0,0.248956]
[1742510844723,0.000169,84359.0,84351.0,0.237103]
[1742510844724,0.237087,84357.0,84351.0,0.248958]
[1742510844928,0.248952,84354.0,84348.0,0.237111]
[1742510845146,0.248952,84354.0,84345.0,0.011856]
[1742510845147,0.237104,84351.0,84345.0,0.011856]
[1742510845459,0.248954,84353.0,84348.0,0.237111]
[1742510845867,0.237102,84352.0,84348.0,0.237111]
[1742510846071,0.248954,84353.0,84348.0,0.237111]
[1742510846072,0.2371,84353.0,84349.0,0.237108]
[1742510846749,0.2371,84353.0,84343.0,0.248981]
[1742510846750,0.237107,84350.0,84343.0,0.248981]
[1742510846946,0.237113,84348.0,84344.0,0.237123]
[1742510847678,0.011855,84349.0,84345.0,0.23712]
[1742510847679,0.248967,84349.0,84345.0,0.23712]
[1742510848506,0.248967,84349.0,84344.0,0.237123]
[1742510848946,0.001,84353.0,84350.0,0.248962]
[1742510849149,0.001,84353.0,84351.0,0.237101]
[1742510849348,0.001,84353.0,84352.0,0.237101]
[1742510850086,0.002,84353.0,84351.0,0.248956]
[1742510850304,0.237096,84354.0,84349.0,0.237107]
[1742510850699,0.002,84353.0,84349.0,0.237107]
[1742510850908,0.237096,84354.0,84349.0,0.237107]
[1742510851313,0.237103,84352.0,84348.0,0.237111]
[1742510851501,0.237102,84352.0,84348.0,0.237112]
[1742510851701,0.251955,84353.0,84348.0,0.237112]
[1742510851923,0.250955,84353.0,84348.0,0.237112]
[1742510852408,0.250955,84353.0,84345.0,0.000338]
[1742510852409,0.548973,84346.0,84345.0,0.000338]
[1742510854115,0.66854803,84346.0,84345.0,0.000338]
[1742510854256,0.67154803,84346.0,84345.0,0.000338]
[1742510854456,0.67454803,84346.0,84345.0,0.000338]
[1742510855059,0.695693,84346.0,84345.0,0.000338]
[1742510855334,0.698693,84346.0,84345.0,0.000338]
[1742510855544,0.695693,84346.0,84345.0,0.000338]
[1742510855954,0.699693,84346.0,84345.0,0.000338]
[1742510857921,0.007,84346.0,84345.0,0.249315]
[1742510858271,0.007,84346.0,84345.0,0.000338]
[1742510858590,0.004,84346.0,84345.0,0.000338]
[1742510858797,0.004,84346.0,84345.0,0.237459]
[1742510859011,0.004,84346.0,84345.0,0.46889003]
[1742510859200,0.004,84346.0,84345.0,0.349315]
[1742510859615,0.006,84346.0,84345.0,0.349315]
[1742510859812,0.002,84346.0,84345.0,0.349315]
[1742510860421,0.237093,84356.0,84352.0,0.2371]
[1742510860620,0.237097,84354.0,84346.0,0.248973]
[1742510860791,0.248949,84355.0,84346.0,0.248973]
[1742510861146,0.237096,84354.0,84350.0,0.237104]
[1742510862519,0.2371,84353.0,84349.0,0.237104]
[1742510862714,0.248966,84349.0,84345.0,0.001338]
[1742510862947,0.237106,84351.0,84346.0,0.237118]
[1742510863348,0.011854,84357.0,84345.0,0.000338]
[1742510863547,0.237114,84348.0,84345.0,0.000338]
[1742510863729,0.548973,84346.0,84345.0,0.000338]
[1742510865322,0.550973,84346.0,84345.0,0.000338]
[1742510865974,0.553973,84346.0,84345.0,0.000338]
[1742510866173,0.67354803,84346.0,84345.0,0.000338]
[1742510870796,0.67354803,84346.0,84345.0,0.000338]
[1742510872151,0.005,84346.0,84345.0,0.000338]
[1742510873384,0.002,84346.0,84345.0,0.000338]
[1742510873538,0.237118,84346.0,84345.0,0.000338]
[1742510873738,0.549973,84346.0,84345.0,0.000338]
[1742510880146,0.66954803,84346.0,84345.0,0.000338]
[1742510881050,0.549973,84346.0,84345.0,0.000338]
[1742510882561,0.66954803,84346.0,84345.0,0.000338]
[1742510884724,0.549973,84346.0,84345.0,0.000338]
[1742510886029,0.66954803,84346.0,84345.0,0.000338]
[1742510886227,0.74674803,84346.0,84345.0,1e-06]
[1742510886456,1.19938888,84346.0,84345.0,1e-06]
[1742510886656,0.549065,84315.0,84314.0,0.00047441]
[1742510887875,0.549065,84315.0,84314.0,0.00347441]
[1742510888078,0.54918986,84315.0,84314.0,0.00347441]
[1742510888800,0.66876489,84315.0,84314.0,0.00347441]
[1742510889472,0.66876489,84315.0,84314.0,0.00747441]
[1742510889681,0.70440089,84315.0,84314.0,0.00447441]
[1742510890042,0.70440089,84315.0,84314.0,0.00147441]
[1742510890614,0.70440089,84315.0,84314.0,0.00347441]
[1742510891809,0.71607741,84315.0,84314.0,0.00347441]
[1742510894606,0.00012486,84315.0,84314.0,0.00347441]
[1742510895012,0.00012486,84315.0,84314.0,0.24068241]
[1742510895440,0.00012486,84315.0,84314.0,0.25254241]
[1742510895770,0.00012486,84315.0,84314.0,0.37211744]
[1742510896300,0.00012486,84315.0,84314.0,0.37011744]
[1742510896502,0.00012486,84315.0,84314.0,0.36911744]
[1742510897117,0.00012486,84315.0,84314.0,0.37111744]
[1742510897314,0.00012486,84315.0,84314.0,0.37211744]
[1742510897515,0.00012486,84315.0,84314.0,0.36911744]
[1742510897918,0.00012486,84315.0,84314.0,0.37111744]
[1742510898328,0.00012486,84315.0,84314.0,0.25154241]
[1742510898934,0.00012486,84315.0,84314.0,0.25354241]
[1742510900744,0.00012486,84315.0,84314.0,0.25388041]
[1742510902204,0.00012486,84315.0,84314.0,0.00481241]
[1742510902407,0.24918986,84315.0,84314.0,0.00481241]
[1742510905449,0.00012486,84315.0,84314.0,0.24202041]
[1742510905680,0.00012486,84315.0,84314.0,0.25388041]
[1742510909360,0.24918986,84315.0,84314.0,0.00481241]
[1742510910416,0.23732986,84315.0,84314.0,0.00481241]
[1742510910864,0.24918986,84315.0,84314.0,0.00481241]
[1742510912077,0.24918986,84315.0,84314.0,0.00481241]
[1742510913574,0.00012486,84315.0,84314.0,0.25388041]
[1742510915875,0.00012486,84315.0,84314.0,0.45155544]
[1742510916053,0.00012486,84315.0,84314.0,0.46609629]
[1742510916266,0.00012486,84315.0,84314.0,0.48969499]
[1742510916798,0.00012486,84315.0,84314.0,0.48769499]
[1742510917013,0.00012486,84315.0,84314.0,0.48569499]
[1742510917159,0.00012486,84315.0,84314.0,0.49069499]
[1742510917614,0.00012486,84315.0,84314.0,0.48869499]
[1742510918020,0.00012486,84315.0,84314.0,0.49269499]
[1742510920502,0.00012486,84315.0,84314.0,0.47815414]
[1742510920710,0.00012486,84315.0,84314.0,0.40005414]
[1742510920931,0.00012486,84315.0,84314.0,0.51521544]
[1742510921140,0.00012486,84315.0,84314.0,0.25688041]
[1742510923651,0.00012486,84315.0,84314.0,0.00781241]
[1742510923843,0.24918986,84315.0,84314.0,0.00781241]
[1742510924666,0.24918986,84315.0,84314.0,0.00481241]
[1742510924882,0.24918986,84315.0,84314.0,0.00081241]
[1742510925087,0.24918986,84315.0,84314.0,0.00381241]
[1742510926457,0.24918986,84315.0,84314.0,0.00781241]
[1742510927687,0.24918986,84315.0,84314.0,0.00081241]
[1742510928089,0.24918986,84315.0,84314.0,0.00181241]
[1742510928610,0.24918986,84315.0,84314.0,0.00381241]
[1742510931345,0.00012486,84315.0,84314.0,0.24102041]
[1742510931501,0.00012486,84315.0,84314.0,0.25288041]
[1742510938718,0.00012486,84315.0,84314.0,0.00381241]
[1742510938914,0.00012486,84315.0,84314.0,0.24102041]
[1742510940961,0.00012486,84315.0,84314.0,0.25288041]
[1742510941166,0.00012486,84315.0,84314.0,0.00381241]
[1742510941363,0.00012486,84315.0,84314.0,0.24102041]
[1742510941992,0.23732986,84315.0,84314.0,0.00381241]
[1742510942204,0.00012486,84315.0,84314.0,0.00381241]
[1742510942721,0.01198486,84315.0,84314.0,0.00381241]
[1742510942940,0.24918986,84315.0,84314.0,0.00381241]
[1742510948933,0.24918986,84315.0,84314.0,0.00081241]
[1742510949482,0.24918986,84315.0,84314.0,0.00181241]
[1742510950999,0.54918986,84315.0,84314.0,0.00181241]
[1742510955243,0.54918986,84315.0,84314.0,0.00081241]
[1742510955445,0.54918986,84315.0,84314.0,0.00181241]
[1742510955645,0.66876489,84315.0,84314.0,0.00181241]
[1742510956482,0.66876489,84315.0,84314.0,0.00081241]
[1742510956695,0.66876489,84315.0,84314.0,0.00181241]
[1742510957931,0.67076489,84315.0,84314.0,0.00181241]
[1742510958365,0.67076489,84315.0,84314.0,0.00081241]
[1742510958581,0.55118986,84315.0,84314.0,0.00081241]
[1742510958788,0.55218986,84315.0,84314.0,0.00081241]
[1742510968694,0.67176489,84315.0,84314.0,0.00081241]
[1742510969520,0.75176489,84315.0,84314.0,0.00081241]
[1742510984423,0.67176489,84315.0,84314.0,0.00081241]
[1742510994671,0.80632489,84315.0,84314.0,0.00081241]
[1742511018222,0.55218986,84315.0,84314.0,0.00081241]
[1742511034030,0.67176489,84315.0,84314.0,0.00081241]
[1742511034732,0.80500489,84315.0,84314.0,0.00081241]
[1742511045681,0.67176489,84315.0,84314.0,0.00081241]
[1742511045890,0.80464489,84315.0,84314.0,0.00081241]
[1742511048385,0.80464489,84315.0,84314.0,4.1e-07]
[1742511048585,0.93644489,84315.0,84314.0,4.1e-07]
[1742511048762,0.94119689,84315.0,84314.0,4.1e-07]
[1742511049336,0.93819689,84315.0,84314.0,4.1e-07]
[1742511049739,0.94519689,84315.0,84314.0,4.1e-07]
[1742511050967,1.05147451,84315.0,84314.0,4.1e-07]
[1742511051180,1.06033665,84315.0,84314.0,4.1e-07]
[1742511052748,1.07893613,84315.0,84314.0,4.1e-07]
[1742511053144,0.97265851,84315.0,84314.0,4.1e-07]
[1742511056717,0.96965851,84315.0,84314.0,4.1e-07]
[1742511057166,0.97265851,84315.0,84314.0,4.1e-07]
[1742511057547,0.96965851,84315.0,84314.0,4.1e-07]
[1742511057754,0.96565851,84315.0,84314.0,4.1e-07]
[1742511057958,0.97065851,84315.0,84314.0,4.1e-07]
[1742511058156,0.97565851,84315.0,84314.0,4.1e-07]
[1742511059419,0.98065851,84315.0,84314.0,4.1e-07]
[1742511060835,0.549112,84299.0,84298.0,9.1e-07]
[1742511061035,0.80156703,84299.0,84298.0,9.1e-07]
[1742511062262,0.81336706,84299.0,84298.0,9.1e-07]
[1742511062831,0.81436706,84299.0,84298.0,9.1e-07]
[1742511063696,1.24612706,84299.0,84298.0,9.1e-07]
[1742511063936,1.24612706,84299.0,84298.0,0.08220091]
[1742511063937,0.94612706,84299.0,84298.0,0.08220091]
[1742511064141,1.07800706,84299.0,84298.0,0.08220091]
[1742511064270,1.37800706,84299.0,84298.0,0.08220091]
[1742511064477,1.38100706,84299.0,84298.0,9.1e-07]
[1742511068620,0.81636706,84299.0,84298.0,9.1e-07]
[1742511070052,0.85201006,84299.0,84298.0,9.1e-07]
[1742511073743,0.85201006,84299.0,84298.0,0.00017011]
[1742511077042,0.85201006,84299.0,84298.0,1.1e-07]
[1742511079464,0.87061126,84299.0,84298.0,1.1e-07]
[1742511086942,0.87094966,84299.0,84298.0,1.1e-07]
[1742511092132,0.73806966,84299.0,84298.0,1.1e-07]
[1742511092353,0.85134846,84299.0,84298.0,1.1e-07]
[1742511092562,0.26325043,84299.0,84298.0,1.1e-07]
[1742511092763,0.39513043,84299.0,84298.0,1.1e-07]
[1742511093344,0.39413043,84299.0,84298.0,1.1e-07]
[1742511093547,0.41627148,84299.0,84298.0,1.1e-07]
[1742511093754,0.41727148,84299.0,84298.0,1.1e-07]
[1742511094066,0.41927148,84299.0,84298.0,1.1e-07]
[1742511094447,0.41727148,84299.0,84298.0,1.1e-07]
[1742511094768,0.41927148,84299.0,84298.0,1.1e-07]
[1742511095111,0.41827148,84299.0,84298.0,1.1e-07]
[1742511095291,0.41927148,84299.0,84298.0,1.1e-07]
[1742511096677,0.40747145,84299.0,84298.0,1.1e-07]
[1742511098880,0.27459145,84299.0,84298.0,1.1e-07]
[1742511099421,0.28648148,84299.0,84298.0,1.1e-07]
[1742511101350,0.27459145,84299.0,84298.0,1.1e-07]
[1742511101975,0.02547945,84299.0,84298.0,1.1e-07]
[1742511102178,0.02547945,84299.0,84298.0,0.33221511]
[1742511102374,0.02547945,84299.0,84298.0,0.32035311]
[1742511102576,0.02547945,84299.0,84298.0,0.08310011]
[1742511102939,0.02447945,84299.0,84298.0,0.32035311]
[1742511104466,0.02247945,84299.0,84298.0,0.08310011]
[1742511104669,0.25972945,84299.0,84298.0,0.08310011]
[1742511104877,0.27159145,84299.0,84298.0,0.08310011]
[1742511109969,0.27159145,84299.0,84298.0,1.1e-07]
[1742511110981,0.57159145,84299.0,84298.0,1.1e-07]
[1742511113022,0.57259145,84299.0,84298.0,1.1e-07]
[1742511113440,0.57159145,84299.0,84298.0,1.1e-07]
[1742511114693,0.57359145,84299.0,84298.0,1.1e-07]
[1742511115320,0.57659145,84299.0,84298.0,1.1e-07]
[1742511119297,0.26472945,84299.0,84298.0,1.1e-07]
[1742511119497,0.26472945,84299.0,84298.0,0.12300011]
[1742511119498,0.02747945,84299.0,84298.0,0.12300011]
[1742511119703,0.02747945,84299.0,84298.0,0.36025311]
[1742511120334,0.02547945,84299.0,84298.0,0.12300011]
[1742511120516,0.26272945,84299.0,84298.0,1.1e-07]
[1742511120919,0.02547945,84299.0,84298.0,1.1e-07]
[1742511121119,0.02247945,84299.0,84298.0,0.23725311]
[1742511121545,0.02347945,84299.0,84298.0,0.23725311]
[1742511122330,0.02347945,84299.0,84298.0,0.32501511]
[1742511124552,0.02247945,84299.0,84298.0,0.32501511]
[1742511124899,0.02347945,84299.0,84298.0,0.32501511]
[1742511128444,0.02347945,84299.0,84298.0,0.31315311]
[1742511128656,0.02347945,84299.0,84298.0,0.23725311]
[1742511128865,0.26072945,84299.0,84298.0,1.1e-07]
[1742511129041,0.02347945,84299.0,84298.0,1.1e-07]
[1742511129411,0.26072945,84299.0,84298.0,1.1e-07]
[1742511130894,0.27259145,84299.0,84298.0,1.1e-07]
[1742511133287,0.27159145,84299.0,84298.0,1.1e-07]
[1742511133485,0.27259145,84299.0,84298.0,1.1e-07]
[1742511134213,0.27359145,84299.0,84298.0,1.1e-07]
[1742511134378,0.2514504,84299.0,84298.0,1.1e-07]
[1742511134779,0.27258428,84299.0,84298.0,1.1e-07]
[1742511135382,0.27458428,84299.0,84298.0,1.1e-07]
[1742511140262,0.27358428,84299.0,84298.0,1.1e-07]
[1742511140707,0.27558428,84299.0,84298.0,1.1e-07]
[1742511141078,0.27358428,84299.0,84298.0,1.1e-07]
[1742511141488,0.27658428,84299.0,84298.0,1.1e-07]
[1742511144293,0.27658428,84299.0,84298.0,0.23725311]
[1742511144294,0.02747228,84299.0,84298.0,0.23725311]
[1742511144503,0.02747228,84299.0,84298.0,1.1e-07]
[1742511144703,0.02747228,84299.0,84298.0,0.08270011]
[1742511145036,0.26472228,84299.0,84298.0,0.08270011]
[1742511146466,0.02747228,84299.0,84298.0,0.08270011]
[1742511147041,0.02747228,84299.0,84298.0,0.31995311]
[1742511147580,0.02747228,84299.0,84298.0,0.08270011]
[1742511148423,0.02747228,84299.0,84298.0,0.31995311]
[1742511148630,0.02447228,84299.0,84298.0,0.31995311]
[1742511148956,0.02747228,84299.0,84298.0,0.08270011]
[1742511149236,0.02547228,84299.0,84298.0,0.08270011]
[1742511149615,0.02747228,84299.0,84298.0,0.08270011]
[1742511149814,0.02747228,84299.0,84298.0,0.31995311]
[1742511150182,0.02747228,84299.0,84298.0,0.08270011]
[1742511152449,0.02747228,84299.0,84298.0,0.31995311]
[1742511152855,0.02747228,84299.0,84298.0,0.08270011]
[1742511153068,0.02747228,84299.0,84298.0,0.31995311]
[1742511165446,0.02747228,84299.0,84298.0,0.33181511]
[1742511171996,0.02747228,84299.0,84298.0,0.24911511]
[1742511172206,0.02747228,84299.0,84298.0,0.23725311]
[1742511174493,0.02747228,84299.0,84298.0,1.1e-07]
[1742511174760,0.26472228,84299.0,84298.0,1.1e-07]
[1742511177707,0.27658428,84299.0,84298.0,1.1e-07]
[1742511177908,0.57658428,84299.0,84298.0,1.1e-07]
[1742511178444,0.57458428,84299.0,84298.0,1.1e-07]